fUSD/lending_fUSD_20260515
["ID","MTS","AMOUNT","RATE_DAILY","PERIOD"]
[422288501,1778794251000,-8163.28,0.00029621,7]
[422288505,1778794251000,-150.0,0.00029786,7]
[422288499,1778794251000,-1001.9,0.000295,2]
[422288500,1778794251000,-150.0,0.00029601,2]
[422288509,1778794251000,-150.0,0.00029786,7]
[422288508,1778794251000,-152.22223688,0.00029786,7]
[422288504,1778794251000,-150.0,0.00029786,7]
[422288502,1778794251000,-150.0,0.00029786,7]
[422288506,1778794251000,-150.0,0.00029786,7]
[422288507,1778794251000,-150.0,0.00029786,7]
[422288520,1778794251000,-150.0,0.00029952,7]
[422288521,1778794251000,-150.0,0.00029952,7]
[422288510,1778794251000,-150.0,0.00029786,7]
[422288522,1778794251000,-150.0,0.00029955,7]
[422288523,1778794251000,-150.0,0.00029989,7]
[422288503,1778794251000,-150.0,0.00029786,7]
[422288544,1778794251000,-749.99,0.00030137,2]
[422288543,1778794251000,-157.0,0.00030131,3]
[422288581,1778794251000,-717.0,0.00030557,30]
[422288584,1778794251000,-150.0,0.00030563,7]
[422288583,1778794251000,-209.0,0.00030557,30]
[422288582,1778794251000,-257.0,0.00030557,30]
[422288585,1778794251000,-428.0,0.00030581,30]
[422288586,1778794251000,-1953.0,0.00030581,30]
[422288599,1778794251000,-219.86705449,0.0003065,2]
[422288589,1778794251000,-150.0,0.00030614,7]
[422288592,1778794251000,-250.0,0.00030629,30]
[422288588,1778794251000,-150.0,0.00030614,7]
[422288591,1778794251000,-150.0,0.00030614,7]
[422288590,1778794251000,-150.0,0.00030614,7]
[422288593,1778794251000,-153.0,0.00030629,30]
[422288596,1778794251000,-3663.0,0.00030629,30]
[422288598,1778794251000,-219.86705452,0.0003065,2]
[422288595,1778794251000,-2639.0,0.00030629,30]
[422288597,1778794251000,-150.0,0.00030631,7]
[422288600,1778794251000,-219.86705449,0.0003065,2]
[422288602,1778794251000,-150.0,0.00030689,7]
[422288603,1778794251000,-150.0,0.00030698,7]
[422288604,1778794251000,-2160.98269661,0.000307,2]
[422288605,1778794251000,-2160.98269659,0.000307,2]
[422288607,1778794251000,-150.0,0.00030732,7]
[422288606,1778794251000,-2160.98269659,0.000307,2]
[422288608,1778794251000,-150.0,0.00030732,7]
[422288601,1778794251000,-150.0,0.00030664,7]
[422288546,1778794251000,-200.0,0.00030137,2]
[422288580,1778794251000,-170.0,0.00030557,30]
[422288579,1778794251000,-221.0,0.00030557,30]
[422288594,1778794251000,-231.0,0.00030629,30]
[422288576,1778794251000,-150.0,0.00030529,7]
[422288545,1778794251000,-397.87,0.00030137,2]
[422288578,1778794251000,-150.0,0.0003055,7]
[422288552,1778794251000,-150.0,0.00030238,7]
[422288551,1778794251000,-150.0,0.00030225,7]
[422288556,1778794251000,-150.0,0.00030283,7]
[422288554,1778794251000,-150.0,0.00030259,7]
[422288553,1778794251000,-2420.7,0.00030239,2]
[422288560,1778794251000,-150.0,0.00030327,7]
[422288557,1778794251000,-150.0,0.00030283,7]
[422288558,1778794251000,-150.0,0.00030293,7]
[422288561,1778794251000,-150.0,0.0003036,7]
[422288559,1778794251000,-150.0,0.00030295,7]
[422288563,1778794251000,-150.0,0.00030388,7]
[422288574,1778794251000,-150.0,0.00030495,7]
[422288555,1778794251000,-150.0,0.00030259,7]
[422288577,1778794251000,-150.0,0.00030538,7]
[422288587,1778794251000,-150.0,0.00030597,7]
[422288573,1778794251000,-150.0,0.00030495,7]
[422288571,1778794251000,-164.84409222,0.00030454,72]
[422288570,1778794251000,-930.0,0.00030448,2]
[422288572,1778794251000,-150.0,0.00030462,7]
[422288569,1778794251000,-1270.0,0.00030448,2]
[422288567,1778794251000,-150.0,0.00030448,7]
[422288566,1778794251000,-150.0,0.00030428,7]
[422288565,1778794251000,-272.0,0.00030411,14]
[422288564,1778794251000,-150.0,0.00030394,7]
[422288562,1778794251000,-152.0,0.00030373,4]
[422288575,1778794251000,-263.02,0.000305,6]
[422288568,1778794251000,-150.0,0.00030448,7]
[422288649,1778794252000,-150.0,0.00031171,7]
[422288660,1778794252000,-150.0,0.00031374,7]
[422288651,1778794252000,-150.0,0.00031205,7]
[422288659,1778794252000,-150.0,0.0003134,7]
[422288650,1778794252000,-150.0,0.00031205,7]
[422288648,1778794252000,-1000.0,0.00031169,2]
[422288642,1778794252000,-150.0,0.00031137,7]
[422288638,1778794252000,-1000.0,0.0003111,2]
[422288641,1778794252000,-150.0,0.0003111,7]
[422288636,1778794252000,-150.0,0.00031103,7]
[422288639,1778794252000,-1847.41533141,0.0003111,2]
[422288654,1778794252000,-150.0,0.00031276,7]
[422288644,1778794252000,-1000.0,0.00031169,2]
[422288657,1778794252000,-150.0,0.00031306,7]
[422288668,1778794252000,-150.0,0.00031441,7]
[422288655,1778794252000,-150.0,0.00031276,7]
[422288656,1778794252000,-150.0,0.00031291,7]
[422288658,1778794252000,-150.0,0.00031314,7]
[422288653,1778794252000,-150.0,0.00031272,7]
[422288662,1778794252000,-2191.37,0.000314,7]
[422288661,1778794252000,-2019.66,0.000314,14]
[422288672,1778794252000,-150.0,0.00031475,7]
[422288663,1778794252000,-150.0,0.00031407,7]
[422288665,1778794252000,-150.0,0.00031441,7]
[422288664,1778794252000,-150.0,0.00031441,7]
[422288667,1778794252000,-150.0,0.00031441,7]
[422288669,1778794252000,-150.0,0.00031441,7]
[422288640,1778794252000,-150.0,0.0003111,7]
[422288652,1778794252000,-150.0,0.00031238,7]
[422288643,1778794252000,-150.0,0.0003114,7]
[422288610,1778794252000,-150.0,0.00030779,7]
[422288634,1778794252000,-200.0,0.00031096,2]
[422288666,1778794252000,-150.0,0.00031441,7]
[422288613,1778794252000,-150.0,0.00030805,7]
[422288609,1778794252000,-150.0,0.00030766,7]
[422288611,1778794252000,-150.0,0.00030779,7]
[422288612,1778794252000,-150.0,0.00030799,7]
[422288619,1778794252000,-150.0,0.00030935,7]
[422288616,1778794252000,-150.0,0.00030867,7]
[422288614,1778794252000,-150.0,0.00030833,7]
[422288615,1778794252000,-150.0,0.00030839,7]
[422288618,1778794252000,-150.0,0.00030901,7]
[422288617,1778794252000,-374.0,0.000309,3]
[422288620,1778794252000,-150.0,0.00030945,7]
[422288622,1778794252000,-215.87760526,0.00030947,5]
[422288621,1778794252000,-150.0,0.00030945,7]
[422288623,1778794252000,-150.0,0.00030968,7]
[422288624,1778794252000,-150.0,0.00030968,7]
[422288631,1778794252000,-150.0,0.00031059,7]
[422288626,1778794252000,-214.95940296,0.00031,30]
[422288628,1778794252000,-150.0,0.00031027,7]
[422288632,1778794252000,-150.0,0.0003107,7]
[422288627,1778794252000,-150.0,0.00031002,7]
[422288625,1778794252000,-150.0,0.0003099,7]
[422288629,1778794252000,-150.0,0.00031036,7]
[422288633,1778794252000,-150.0,0.00031081,2]
[422288630,1778794252000,-3758.44107044,0.0003105,30]
[422288647,1778794252000,-1000.0,0.00031169,2]
[422288645,1778794252000,-1000.0,0.00031169,2]
[422288635,1778794252000,-3272.25,0.000311,7]
[422288646,1778794252000,-1000.0,0.00031169,2]
[422288637,1778794252000,-1000.0,0.0003111,2]
[422288671,1778794252000,-150.0,0.00031441,7]
[422288670,1778794252000,-150.0,0.00031441,7]
[422288733,1778794252000,-179.3,0.00032113,4]
[422288706,1778794252000,-150.0,0.00031745,7]
[422288711,1778794252000,-150.0,0.00031823,7]
[422288708,1778794252000,-150.0,0.00031772,7]
[422288707,1778794252000,-150.0,0.00031772,7]
[422288703,1778794252000,-1162.0,0.000317,7]
[422288724,1778794252000,-5000.0,0.00032,7]
[422288713,1778794252000,-150.0,0.00031855,7]
[422288723,1778794252000,-11995.63203193,0.00032,2]
[422288712,1778794252000,-150.0,0.00031846,7]
[422288714,1778794252000,-150.0,0.0003188,7]
[422288717,1778794252000,-150.0,0.00031914,7]
[422288716,1778794252000,-150.0,0.00031914,7]
[422288715,1778794252000,-150.0,0.00031892,7]
[422288722,1778794252000,-150.0,0.00031981,7]
[422288720,1778794252000,-150.0,0.00031948,7]
[422288721,1778794252000,-4115.95107045,0.00031963,30]
[422288719,1778794252000,-150.0,0.00031938,7]
[422288718,1778794252000,-150.0,0.00031938,7]
[422288725,1778794252000,-150.0,0.00032015,7]
[422288727,1778794252000,-150.0,0.00032049,7]
[422288736,1778794252000,-150.0,0.0003215,7]
[422288731,1778794252000,-150.0,0.00032103,7]
[422288734,1778794252000,-179.3,0.00032113,4]
[422288729,1778794252000,-150.0,0.00032078,7]
[422288728,1778794252000,-200.0,0.00032055,2]
[422288726,1778794252000,-150.0,0.00032043,7]
[422288732,1778794252000,-150.0,0.00032103,7]
[422288730,1778794252000,-150.0,0.00032083,7]
[422288735,1778794252000,-150.0,0.00032117,7]
[422288709,1778794252000,-150.0,0.00031779,7]
[422288704,1778794252000,-150.0,0.00031711,7]
[422288675,1778794252000,-150.0,0.00031542,7]
[422288702,1778794252000,-150.0,0.00031677,7]
[422288701,1778794252000,-150.0,0.00031677,7]
[422288674,1778794252000,-150.0,0.00031509,7]
[422288684,1778794252000,-150.0,0.00031576,7]
[422288676,1778794252000,-8163.28,0.00031546,7]
[422288682,1778794252000,-193.9184035,0.00031565,5]
[422288680,1778794252000,-257.0,0.00031557,30]
[422288678,1778794252000,-170.0,0.00031557,30]
[422288677,1778794252000,-221.0,0.00031557,30]
[422288681,1778794252000,-209.0,0.00031557,30]
[422288679,1778794252000,-717.0,0.00031557,30]
[422288683,1778794252000,-150.0,0.00031568,7]
[422288686,1778794252000,-1953.0,0.00031581,30]
[422288696,1778794252000,-3663.0,0.00031629,30]
[422288698,1778794252000,-172.0,0.00031644,14]
[422288673,1778794252000,-1000.0,0.000315,7]
[422288687,1778794252000,-150.0,0.00031592,7]
[422288697,1778794252000,-150.0,0.00031644,7]
[422288705,1778794252000,-150.0,0.00031742,7]
[422288699,1778794252000,-272.0,0.00031644,14]
[422288695,1778794252000,-2639.0,0.00031629,30]
[422288692,1778794252000,-250.0,0.00031629,30]
[422288694,1778794252000,-231.0,0.00031629,30]
[422288700,1778794252000,-14845.35804582,0.00031676,2]
[422288689,1778794252000,-150.0,0.00031607,7]
[422288688,1778794252000,-5530.0,0.000316,5]
[422288693,1778794252000,-153.0,0.00031629,30]
[422288685,1778794252000,-428.0,0.00031581,30]
[422288710,1778794252000,-150.0,0.00031813,7]
[422288691,1778794252000,-150.0,0.0003161,7]
[422288690,1778794252000,-150.0,0.00031607,7]
[422288775,1778794253000,-428.0,0.00032581,30]
[422288768,1778794253000,-150.0,0.00032522,7]
[422288778,1778794253000,-150.0,0.00032589,7]
[422288767,1778794253000,-152.0,0.00032504,5]
[422288772,1778794253000,-717.0,0.00032557,30]
[422288774,1778794253000,-209.0,0.00032557,30]
[422288770,1778794253000,-221.0,0.00032557,30]
[422288771,1778794253000,-170.0,0.00032557,30]
[422288777,1778794253000,-150.0,0.00032587,7]
[422288769,1778794253000,-150.0,0.00032556,7]
[422288780,1778794253000,-909.8,0.00032593,7]
[422288779,1778794253000,-899.58,0.00032593,7]
[422288793,1778794253000,-150.0,0.00032645,7]
[422288773,1778794253000,-257.0,0.00032557,30]
[422288781,1778794253000,-150.0,0.00032599,7]
[422288784,1778794253000,-2019.66,0.000326,14]
[422288792,1778794253000,-150.0,0.00032636,2]
[422288786,1778794253000,-150.0,0.00032623,7]
[422288785,1778794253000,-150.0,0.00032623,7]
[422288782,1778794253000,-150.0,0.00032599,7]
[422288791,1778794253000,-3663.0,0.00032629,30]
[422288783,1778794253000,-2191.37,0.000326,7]
[422288787,1778794253000,-250.0,0.00032629,30]
[422288763,1778794253000,-150.0,0.00032454,7]
[422288789,1778794253000,-231.0,0.00032629,30]
[422288776,1778794253000,-1953.0,0.00032581,30]
[422288762,1778794253000,-150.0,0.00032434,7]
[422288743,1778794253000,-150.0,0.00032218,7]
[422288759,1778794253000,-899.58,0.00032428,7]
[422288790,1778794253000,-2639.0,0.00032629,30]
[422288737,1778794253000,-150.0,0.0003215,7]
[422288738,1778794253000,-171.95920175,0.00032184,5]
[422288740,1778794253000,-150.0,0.00032193,7]
[422288750,1778794253000,-5000.0,0.000323,10]
[422288744,1778794253000,-150.0,0.00032252,7]
[422288741,1778794253000,-150.0,0.00032204,2]
[422288752,1778794253000,-150.0,0.00032332,7]
[422288739,1778794253000,-150.0,0.00032184,7]
[422288746,1778794253000,-150.0,0.00032268,7]
[422288742,1778794253000,-2420.7,0.0003221,5]
[422288747,1778794253000,-150.0,0.00032268,7]
[422288758,1778794253000,-150.0,0.0003242,7]
[422288751,1778794253000,-150.0,0.00032319,7]
[422288749,1778794253000,-150.0,0.00032285,7]
[422288748,1778794253000,-150.0,0.00032268,7]
[422288754,1778794253000,-150.0,0.00032353,7]
[422288760,1778794253000,-909.8,0.00032428,7]
[422288753,1778794253000,-150.0,0.00032344,7]
[422288757,1778794253000,-3272.25,0.000324,7]
[422288755,1778794253000,-150.0,0.00032387,7]
[422288764,1778794253000,-157.0,0.00032473,3]
[422288761,1778794253000,-150.0,0.00032434,7]
[422288756,1778794253000,-150.0,0.00032387,7]
[422288765,1778794253000,-150.0,0.00032488,7]
[422288766,1778794253000,-150.0,0.00032494,7]
[422288745,1778794253000,-150.0,0.00032268,7]
[422288788,1778794253000,-153.0,0.00032629,30]
[422288814,1778794253000,-1000.0,0.00032709,2]
[422288796,1778794253000,-2000.0,0.00032655,2]
[422288825,1778794253000,-150.0,0.00032792,7]
[422288828,1778794253000,-150.0,0.00032826,7]
[422288829,1778794253000,-150.0,0.00032841,7]
[422288827,1778794253000,-5000.0,0.000328,10]
[422288831,1778794253000,-150.0,0.00032859,7]
[422288830,1778794253000,-150.0,0.00032859,7]
[422288840,1778794253000,-150.0,0.00032893,7]
[422288842,1778794253000,-899.58,0.00032922,7]
[422288841,1778794253000,-327.52,0.000329,120]
[422288832,1778794253000,-6643.0,0.00032877,2]
[422288834,1778794253000,-749.99,0.00032877,2]
[422288835,1778794253000,-1000.0,0.00032877,120]
[422288826,1778794253000,-150.0,0.00032795,7]
[422288794,1778794253000,-2000.0,0.00032655,2]
[422288839,1778794253000,-4473.46680646,0.00032877,30]
[422288836,1778794253000,-500.0,0.00032877,2]
[422288837,1778794253000,-500.0,0.00032877,2]
[422288843,1778794253000,-909.8,0.00032922,7]
[422288846,1778794253000,-150.0,0.0003293,7]
[422288844,1778794253000,-150.0,0.00032927,7]
[422288847,1778794253000,-150.0,0.00032945,7]
[422288845,1778794253000,-150.0,0.0003293,7]
[422288848,1778794253000,-150.0,0.00032961,7]
[422288850,1778794253000,-150.0,0.00032995,7]
[422288849,1778794253000,-2686.98398688,0.00032984,7]
[422288851,1778794253000,-5000.0,0.00033,10]
[422288833,1778794253000,-1001.84,0.00032877,2]
[422288823,1778794253000,-150.0,0.00032765,7]
[422288838,1778794253000,-1313.92418296,0.00032877,60]
[422288820,1778794253000,-909.8,0.00032757,7]
[422288822,1778794253000,-150.0,0.00032758,7]
[422288797,1778794253000,-2000.0,0.00032655,2]
[422288798,1778794253000,-2000.0,0.00032655,2]
[422288795,1778794253000,-2000.0,0.00032655,2]
[422288806,1778794253000,-150.0,0.00032691,7]
[422288799,1778794253000,-2000.0,0.00032655,2]
[422288802,1778794253000,-2000.0,0.00032655,2]
[422288800,1778794253000,-2000.0,0.00032655,2]
[422288803,1778794253000,-2000.0,0.00032655,2]
[422288805,1778794253000,-150.0,0.00032682,7]
[422288801,1778794253000,-2000.0,0.00032655,2]
[422288807,1778794253000,-1000.0,0.00032709,2]
[422288810,1778794253000,-1000.0,0.00032709,2]
[422288804,1778794253000,-150.0,0.00032657,7]
[422288819,1778794253000,-1542.13,0.00032757,7]
[422288809,1778794253000,-1000.0,0.00032709,2]
[422288808,1778794253000,-1000.0,0.00032709,2]
[422288816,1778794253000,-875.0,0.00032709,2]
[422288811,1778794253000,-1000.0,0.00032709,2]
[422288812,1778794253000,-1000.0,0.00032709,2]
[422288818,1778794253000,-899.58,0.00032757,7]
[422288813,1778794253000,-1000.0,0.00032709,2]
[422288815,1778794253000,-1000.0,0.00032709,2]
[422288821,1778794253000,-1559.66,0.00032757,7]
[422288817,1778794253000,-150.0,0.00032724,7]
[422288824,1778794253000,-150.0,0.00032765,7]
[422288893,1778794254000,-42431.0,0.00033614,30]
[422288904,1778794254000,-263.02,0.000339,15]
[422288882,1778794254000,-221.0,0.00033557,30]
[422288903,1778794254000,-500.0,0.00033882,30]
[422288891,1778794254000,-500.0,0.00033608,30]
[422288892,1778794254000,-500.0,0.00033608,30]
[422288884,1778794254000,-717.0,0.00033557,30]
[422288889,1778794254000,-1953.0,0.00033581,30]
[422288886,1778794254000,-209.0,0.00033557,30]
[422288885,1778794254000,-257.0,0.00033557,30]
[422288887,1778794254000,-40554.0,0.00033565,30]
[422288902,1778794254000,-2191.37,0.000338,30]
[422288888,1778794254000,-428.0,0.00033581,30]
[422288894,1778794254000,-250.0,0.00033629,30]
[422288911,1778794254000,-40554.0,0.00034017,30]
[422288901,1778794254000,-2019.66,0.000338,14]
[422288898,1778794254000,-3663.0,0.00033629,30]
[422288897,1778794254000,-2639.0,0.00033629,30]
[422288896,1778794254000,-231.0,0.00033629,30]
[422288900,1778794254000,-40554.0,0.00033791,30]
[422288899,1778794254000,-40554.0,0.00033678,30]
[422288906,1778794254000,-42431.0,0.00033921,30]
[422288916,1778794254000,-40554.0,0.00034244,30]
[422288905,1778794254000,-40554.0,0.00033904,30]
[422288907,1778794254000,-1855.361,0.00033961,37]
[422288908,1778794254000,-350.0,0.00033973,5]
[422288914,1778794254000,-2420.7,0.00034182,7]
[422288883,1778794254000,-170.0,0.00033557,30]
[422288895,1778794254000,-153.0,0.00033629,30]
[422288881,1778794254000,-5000.0,0.000335,7]
[422288913,1778794254000,-575.0,0.00034179,11]
[422288879,1778794254000,-8163.28,0.0003347,14]
[422288855,1778794254000,-150.0,0.00033062,7]
[422288854,1778794254000,-500.0,0.0003306,30]
[422288852,1778794254000,-350.0,0.00033014,5]
[422288853,1778794254000,-150.0,0.00033028,7]
[422288856,1778794254000,-185.30906992,0.00033096,7]
[422288858,1778794254000,-257.20275532,0.00033096,7]
[422288867,1778794254000,-179.98,0.00033183,60]
[422288860,1778794254000,-166.64300097,0.00033096,7]
[422288857,1778794254000,-178.11723745,0.00033096,7]
[422288861,1778794254000,-150.64066077,0.00033096,7]
[422288862,1778794254000,-167.38583216,0.00033096,7]
[422288865,1778794254000,-155.7367363,0.0003311,14]
[422288864,1778794254000,-232.9454173,0.00033096,7]
[422288890,1778794254000,-37355.74,0.000336,2]
[422288863,1778794254000,-226.92243394,0.00033096,7]
[422288866,1778794254000,-40554.0,0.00033113,30]
[422288869,1778794254000,-40554.0,0.00033226,30]
[422288868,1778794254000,-1162.0,0.000332,7]
[422288870,1778794254000,-277.0,0.00033226,30]
[422288871,1778794254000,-174.59413152,0.00033306,10]
[422288872,1778794254000,-42431.0,0.00033307,30]
[422288878,1778794254000,-40554.0,0.00033452,30]
[422288874,1778794254000,-840.228,0.00033334,30]
[422288876,1778794254000,-1270.0,0.00033448,2]
[422288877,1778794254000,-930.0,0.00033448,2]
[422288875,1778794254000,-40554.0,0.00033339,30]
[422288873,1778794254000,-500.0,0.00033334,30]
[422288880,1778794254000,-3272.25,0.000335,30]
[422288859,1778794254000,-216.21635276,0.00033096,7]
[422288910,1778794254000,-5000.0,0.00034,10]
[422288927,1778794254000,-717.0,0.00034557,30]
[422288912,1778794254000,-40554.0,0.00034131,30]
[422288945,1778794254000,-42432.0,0.00034841,30]
[422288951,1778794254000,-342.59831616,0.00034987,3]
[422288950,1778794254000,-300.0,0.00034987,3]
[422288949,1778794254000,-200.0,0.00034987,3]
[422288947,1778794254000,-40554.0,0.00034922,30]
[422288952,1778794254000,-370.39326464,0.00034987,3]
[422288948,1778794254000,-350.0,0.00034931,5]
[422288953,1778794254000,-271.2596313,0.00034996,5]
[422288957,1778794254000,-515.0917441,0.00035039,60]
[422288967,1778794254000,-717.0,0.00035557,30]
[422288956,1778794254000,-40563.0,0.00035035,30]
[422288968,1778794254000,-257.0,0.00035557,30]
[422288969,1778794254000,-209.0,0.00035557,30]
[422288946,1778794254000,-3272.25,0.000349,30]
[422288958,1778794254000,-1500.0,0.000352,7]
[422288964,1778794254000,-5000.0,0.000355,7]
[422288961,1778794254000,-2191.37,0.000353,30]
[422288963,1778794254000,-272.0,0.00035441,30]
[422288962,1778794254000,-8163.28,0.00035394,30]
[422288960,1778794254000,-2019.66,0.000353,14]
[422288965,1778794254000,-221.0,0.00035557,30]
[422288966,1778794254000,-170.0,0.00035557,30]
[422288970,1778794254000,-428.0,0.00035581,30]
[422288972,1778794254000,-1039.04238956,0.00035616,7]
[422288971,1778794254000,-1953.0,0.00035581,30]
[422288973,1778794254000,-1039.04238956,0.00035616,7]
[422288974,1778794254000,-1039.04238956,0.00035616,7]
[422288909,1778794254000,-150.0,0.00034,5]
[422288959,1778794254000,-225.83777085,0.00035264,14]
[422288955,1778794254000,-5000.0,0.00035,10]
[422288976,1778794254000,-1039.04238956,0.00035616,7]
[422288944,1778794254000,-157.0,0.00034815,3]
[422288943,1778794254000,-40554.0,0.00034809,30]
[422288920,1778794254000,-40554.0,0.00034357,30]
[422288917,1778794254000,-1000.0,0.00034247,120]
[422288919,1778794254000,-5000.0,0.000343,10]
[422288918,1778794254000,-150.0,0.00034267,2]
[422288928,1778794254000,-257.0,0.00034557,30]
[422288923,1778794254000,-604.04,0.00034521,120]
[422288924,1778794254000,-42431.0,0.00034534,30]
[422288926,1778794254000,-170.0,0.00034557,30]
[422288922,1778794254000,-5000.0,0.000345,7]
[422288921,1778794254000,-40554.0,0.0003447,30]
[422288975,1778794254000,-1039.04238956,0.00035616,7]
[422288929,1778794254000,-209.0,0.00034557,30]
[422288925,1778794254000,-221.0,0.00034557,30]
[422288932,1778794254000,-40554.0,0.00034583,30]
[422288954,1778794254000,-61701.16971157,0.00035,7]
[422288931,1778794254000,-1953.0,0.00034581,30]
[422288937,1778794254000,-3663.0,0.00034629,30]
[422288939,1778794254000,-178.39541889,0.00034636,2]
[422288941,1778794254000,-150.0,0.00034781,2]
[422288942,1778794254000,-1500.0,0.00034795,2]
[422288934,1778794254000,-153.0,0.00034629,30]
[422288915,1778794254000,-42431.0,0.00034227,30]
[422288938,1778794254000,-152.0,0.00034636,6]
[422288936,1778794254000,-2639.0,0.00034629,30]
[422288935,1778794254000,-231.0,0.00034629,30]
[422288940,1778794254000,-40554.0,0.00034696,30]
[422288933,1778794254000,-250.0,0.00034629,30]
[422288930,1778794254000,-428.0,0.00034581,30]
[422289027,1778794255000,-150.0,0.00035981,2]
[422289024,1778794255000,-733.01,0.000357,120]
[422289028,1778794255000,-1865.36488657,0.00035999,30]
[422289006,1778794255000,-1039.04238956,0.00035616,7]
[422289010,1778794255000,-1039.04238956,0.00035616,7]
[422289012,1778794255000,-1039.04238956,0.00035616,7]
[422289011,1778794255000,-1039.04238956,0.00035616,7]
[422289014,1778794255000,-1039.04238956,0.00035616,7]
[422289016,1778794255000,-1039.04238956,0.00035616,7]
[422289025,1778794255000,-154.66,0.00035778,30]
[422289013,1778794255000,-1039.04238956,0.00035616,7]
[422289009,1778794255000,-1039.04238956,0.00035616,7]
[422289031,1778794255000,-1000.0,0.00036048,2]
[422289019,1778794255000,-250.0,0.00035629,30]
[422289020,1778794255000,-153.0,0.00035629,30]
[422289021,1778794255000,-231.0,0.00035629,30]
[422289018,1778794255000,-237.97922959,0.00035616,2]
[422289017,1778794255000,-749.99,0.00035616,2]
[422289022,1778794255000,-2639.0,0.00035629,30]
[422289023,1778794255000,-3663.0,0.00035629,30]
[422289029,1778794255000,-5000.0,0.00036,10]
[422289030,1778794255000,-1000.0,0.00036048,2]
[422289034,1778794255000,-2420.7,0.00036153,30]
[422289033,1778794255000,-200.0,0.00036105,5]
[422289032,1778794255000,-200.0,0.00036105,5]
[422289015,1778794255000,-1039.04238956,0.00035616,7]
[422289026,1778794255000,-350.0,0.0003589,5]
[422289005,1778794255000,-1039.04238956,0.00035616,7]
[422288987,1778794255000,-1039.04238956,0.00035616,7]
[422289008,1778794255000,-1039.04238956,0.00035616,7]
[422289040,1778794255000,-1270.0,0.00036448,2]
[422288981,1778794255000,-1039.04238956,0.00035616,7]
[422288977,1778794255000,-1039.04238956,0.00035616,7]
[422288980,1778794255000,-1039.04238956,0.00035616,7]
[422288979,1778794255000,-1039.04238956,0.00035616,7]
[422288978,1778794255000,-1039.04238956,0.00035616,7]
[422288983,1778794255000,-1039.04238956,0.00035616,7]
[422288993,1778794255000,-1039.04238956,0.00035616,7]
[422288982,1778794255000,-1039.04238956,0.00035616,7]
[422288985,1778794255000,-1039.04238956,0.00035616,7]
[422288984,1778794255000,-1039.04238956,0.00035616,7]
[422288992,1778794255000,-1039.04238956,0.00035616,7]
[422288986,1778794255000,-1039.04238956,0.00035616,7]
[422289007,1778794255000,-1039.04238956,0.00035616,7]
[422288989,1778794255000,-1039.04238956,0.00035616,7]
[422288991,1778794255000,-1039.04238956,0.00035616,7]
[422288988,1778794255000,-1039.04238956,0.00035616,7]
[422288995,1778794255000,-1039.04238956,0.00035616,7]
[422288994,1778794255000,-1039.04238956,0.00035616,7]
[422288996,1778794255000,-1039.04238956,0.00035616,7]
[422288997,1778794255000,-1039.04238956,0.00035616,7]
[422289001,1778794255000,-1039.04238956,0.00035616,7]
[422288999,1778794255000,-1039.04238956,0.00035616,7]
[422289002,1778794255000,-1039.04238956,0.00035616,7]